[Event "Titled Tuesday Blitz July 18 Late 2023"]
[White "Dimitrov, Atanas"]
[Black "Gomes, Luiz Alexandre de Souza"]
[WhiteFideId "2901315"]
[BlackFideId "2102790"]
[WhiteElo "2704"]
[BlackElo "2356"]
[Result "1-0"]
[Round "4"]
[TimeControl "180+2"]
[Date "2023.07.18"]
[WhiteClock "0:01:31"]
[BlackClock "0:01:40"]
[Board "31"]

1. Nf3 {[%clk 0:03:00]}  Nf6 {[%clk 0:02:59]} 2. c4 {[%clk 0:03:00]}  e6 {[%clk 0:02:59]} 3. Nc3 {[%clk 0:03:00]}  d5 {[%clk 0:02:59]} 4. e3 {[%clk 0:03:01]}  Be7 {[%clk 0:02:59]} 5. b3 {[%clk 0:03:01]}  O-O {[%clk 0:03:00]} 6. Bb2 {[%clk 0:03:02]}  b6 {[%clk 0:03:00]} 7. Be2 {[%clk 0:03:02]}  Bb7 {[%clk 0:03:01]} 8. O-O {[%clk 0:03:03]}  Nbd7 {[%clk 0:03:00]} 9. Rc1 {[%clk 0:03:03]}  c5 {[%clk 0:03:01]} 10. cxd5 {[%clk 0:03:03]}  Nxd5 {[%clk 0:03:00]} 11. d4 {[%clk 0:03:03]}  Nxc3 {[%clk 0:03:00]} 12. Bxc3 {[%clk 0:03:04]}  cxd4 {[%clk 0:02:58]} 13. Nxd4 {[%clk 0:03:04]}  Nc5 {[%clk 0:02:56]} 14. Bf3 {[%clk 0:03:04]}  Bxf3 {[%clk 0:02:56]} 15. Qxf3 {[%clk 0:03:05]}  Rc8 {[%clk 0:02:36]} 16. Nc6 {[%clk 0:02:17]}  Qd7 {[%clk 0:02:36]} 17. Qg4 {[%clk 0:02:13]}  f6 {[%clk 0:02:21]} 18. Nxe7+ {[%clk 0:02:02]}  Qxe7 {[%clk 0:02:22]} 19. Bb4 {[%clk 0:02:02]}  Rfe8 {[%clk 0:02:17]} 20. h3 {[%clk 0:01:57]}  e5 {[%clk 0:02:13]} 21. Rfd1 {[%clk 0:01:54]}  Red8 {[%clk 0:02:13]} 22. Rxd8+ {[%clk 0:01:49]}  Rxd8 {[%clk 0:02:13]} 23. Bxc5 {[%clk 0:01:49]}  bxc5 {[%clk 0:02:13]} 24. Qc4+ {[%clk 0:01:50]}  Kf8 {[%clk 0:02:08]} 25. Qxc5 {[%clk 0:01:47]}  Qxc5 {[%clk 0:02:08]} 26. Rxc5 {[%clk 0:01:47]}  Rd1+ {[%clk 0:02:09]} 27. Kh2 {[%clk 0:01:47]}  Rd2 {[%clk 0:02:09]} 28. Ra5 {[%clk 0:01:47]}  Rxf2 {[%clk 0:02:07]} 29. Rxa7 {[%clk 0:01:48]}  Re2 {[%clk 0:02:04]} 30. b4 {[%clk 0:01:47]}  Rxe3 {[%clk 0:02:04]} 31. b5 {[%clk 0:01:48]}  Re2 {[%clk 0:01:54]} 32. a4 {[%clk 0:01:46]}  Rb2 {[%clk 0:01:55]} 33. Kg3 {[%clk 0:01:42]}  f5 {[%clk 0:01:53]} 34. Rb7 {[%clk 0:01:41]}  Rb3+ {[%clk 0:01:50]} 35. Kh2 {[%clk 0:01:39]}  e4 {[%clk 0:01:49]} 36. a5 {[%clk 0:01:40]}  e3 {[%clk 0:01:49]} 37. Kg3 {[%clk 0:01:38]}  f4+ {[%clk 0:01:44]} 38. Kf3 {[%clk 0:01:37]}  g5 {[%clk 0:01:45]} 39. a6 {[%clk 0:01:34]}  h5 {[%clk 0:01:45]} 40. a7 {[%clk 0:01:33]}  g4+ {[%clk 0:01:45]} 41. hxg4 {[%clk 0:01:32]}  hxg4+ {[%clk 0:01:46]} 42. Kxg4 {[%clk 0:01:31]}  Ra3 {[%clk 0:01:44]} 43. Rb8+ {[%clk 0:01:29]}  Ke7 {[%clk 0:01:42]} 44. a8=Q {[%clk 0:01:30]}  Rxa8 {[%clk 0:01:41]} 45. Rxa8 {[%clk 0:01:31]}  e2 {[%clk 0:01:40]} 46. Ra1 {[%clk 0:01:31]} 1-0


[Site "https://www.chess.com"]

[Event "Titled Tuesday Blitz July 18 Late 2023"]
[White "Grebeniuk, Semen"]
[Black "Makarian, Rudik"]
[WhiteFideId "14117509"]
[BlackFideId "44105681"]
[WhiteElo "2575"]
[BlackElo "2990"]
[Result "0-1"]
[Round "4"]
[TimeControl "180+2"]
[Date "2023.07.18"]
[WhiteClock "0:00:00"]
[BlackClock "0:01:00"]
[Board "32"]

1. d4 {[%clk 0:02:56]}  d6 {[%clk 0:03:00]} 2. Nf3 {[%clk 0:02:53]}  Nf6 {[%clk 0:03:01]} 3. Bg5 {[%clk 0:02:53]}  Ne4 {[%clk 0:03:00]} 4. Bh4 {[%clk 0:02:52]}  Nd7 {[%clk 0:03:00]} 5. Nbd2 {[%clk 0:02:52]}  Ndf6 {[%clk 0:03:01]} 6. e3 {[%clk 0:02:51]}  g6 {[%clk 0:02:57]} 7. Bd3 {[%clk 0:02:51]}  Nxd2 {[%clk 0:02:56]} 8. Qxd2 {[%clk 0:02:52]}  Bg7 {[%clk 0:02:57]} 9. O-O {[%clk 0:02:52]}  O-O {[%clk 0:02:57]} 10. c3 {[%clk 0:02:50]}  b6 {[%clk 0:02:57]} 11. a4 {[%clk 0:02:50]}  Bb7 {[%clk 0:02:57]} 12. Qe2 {[%clk 0:02:48]}  a5 {[%clk 0:02:57]} 13. e4 {[%clk 0:02:45]}  Nh5 {[%clk 0:02:58]} 14. Qe3 {[%clk 0:02:43]}  Bf6 {[%clk 0:02:58]} 15. Bxf6 {[%clk 0:02:40]}  exf6 {[%clk 0:02:59]} 16. Rfe1 {[%clk 0:02:37]}  Re8 {[%clk 0:02:59]} 17. Qh6 {[%clk 0:02:35]}  Qe7 {[%clk 0:02:53]} 18. Bb5 {[%clk 0:02:24]}  Red8 {[%clk 0:02:51]} 19. Nd2 {[%clk 0:02:19]}  Qf8 {[%clk 0:02:49]} 20. Qxf8+ {[%clk 0:02:15]}  Kxf8 {[%clk 0:02:50]} 21. f3 {[%clk 0:02:15]}  Kg7 {[%clk 0:02:50]} 22. Kf2 {[%clk 0:02:14]}  Nf4 {[%clk 0:02:50]} 23. Bf1 {[%clk 0:02:13]}  Re8 {[%clk 0:02:50]} 24. g3 {[%clk 0:02:13]}  Ne6 {[%clk 0:02:50]} 25. Nc4 {[%clk 0:02:13]}  h5 {[%clk 0:02:46]} 26. h4 {[%clk 0:02:08]}  Re7 {[%clk 0:02:42]} 27. Ne3 {[%clk 0:02:08]}  Nf8 {[%clk 0:02:40]} 28. Bc4 {[%clk 0:02:08]}  c6 {[%clk 0:02:38]} 29. Bf1 {[%clk 0:02:04]}  Ba6 {[%clk 0:02:32]} 30. Bxa6 {[%clk 0:01:59]}  Rxa6 {[%clk 0:02:33]} 31. Nc4 {[%clk 0:01:59]}  Rd7 {[%clk 0:02:33]} 32. Ra3 {[%clk 0:01:59]}  d5 {[%clk 0:02:17]} 33. exd5 {[%clk 0:01:58]}  cxd5 {[%clk 0:02:14]} 34. Ne3 {[%clk 0:01:59]}  Rd6 {[%clk 0:02:14]} 35. Rb3 {[%clk 0:01:54]}  Ra7 {[%clk 0:02:15]} 36. Rb5 {[%clk 0:01:54]}  Rad7 {[%clk 0:02:15]} 37. Rb1 {[%clk 0:01:31]}  Ne6 {[%clk 0:02:14]} 38. Rb3 {[%clk 0:01:25]}  f5 {[%clk 0:02:13]} 39. f4 {[%clk 0:01:21]}  Nc7 {[%clk 0:02:13]} 40. Nf1 {[%clk 0:01:17]}  Ne8 {[%clk 0:02:13]} 41. Nd2 {[%clk 0:01:16]}  Nf6 {[%clk 0:02:13]} 42. Re1 {[%clk 0:01:15]}  Ne4+ {[%clk 0:02:12]} 43. Nxe4 {[%clk 0:01:14]}  fxe4 {[%clk 0:02:12]} 44. Rb5 {[%clk 0:01:14]}  Rc7 {[%clk 0:02:11]} 45. Ke3 {[%clk 0:01:09]}  Kf6 {[%clk 0:02:12]} 46. Ra1 {[%clk 0:01:08]}  Kf5 {[%clk 0:02:10]} 47. Kf2 {[%clk 0:00:59]}  Kg4 {[%clk 0:02:10]} 48. Ra3 {[%clk 0:00:57]}  e3+ {[%clk 0:02:05]} 49. Kxe3 {[%clk 0:00:48]}  Kxg3 {[%clk 0:02:04]} 50. Rab3 {[%clk 0:00:47]}  Re7+ {[%clk 0:02:03]} 51. Kd3 {[%clk 0:00:47]}  Kxh4 {[%clk 0:01:53]} 52. Rxb6 {[%clk 0:00:47]}  Rxb6 {[%clk 0:01:53]} 53. Rxb6 {[%clk 0:00:48]}  Kg4 {[%clk 0:01:48]} 54. b4 {[%clk 0:00:40]}  h4 {[%clk 0:01:48]} 55. Rb8 {[%clk 0:00:35]}  Kxf4 {[%clk 0:01:44]} 56. Rh8 {[%clk 0:00:35]}  g5 {[%clk 0:01:43]} 57. bxa5 {[%clk 0:00:20]}  Ra7 {[%clk 0:01:42]} 58. c4 {[%clk 0:00:19]}  Rxa5 {[%clk 0:01:41]} 59. cxd5 {[%clk 0:00:18]}  Rxa4 {[%clk 0:01:40]} 60. d6 {[%clk 0:00:18]}  Ra7 {[%clk 0:01:37]} 61. Kc4 {[%clk 0:00:18]}  f5 {[%clk 0:01:23]} 62. Kd5 {[%clk 0:00:18]}  Kg3 {[%clk 0:00:57]} 63. Ke6 {[%clk 0:00:16]}  f4 {[%clk 0:00:58]} 64. d7 {[%clk 0:00:16]}  Rxd7 {[%clk 0:00:58]} 65. Kxd7 {[%clk 0:00:17]}  f3 {[%clk 0:00:59]} 66. d5 {[%clk 0:00:16]}  f2 {[%clk 0:01:00]} 67. Rf8 {[%clk 0:00:16]}  h3 {[%clk 0:01:00]} 68. d6 {[%clk 0:00:16]}  h2 {[%clk 0:01:01]} 69. Kc7 {[%clk 0:00:08]}  h1=Q {[%clk 0:01:00]} 70. d7 {[%clk 0:00:09]}  Qc1+ {[%clk 0:01:01]} 71. Kb7 {[%clk 0:00:09]}  Qb2+ {[%clk 0:01:01]} 72. Kc8 {[%clk 0:00:07]}  Qc3+ {[%clk 0:01:01]} 73. Kd8 {[%clk 0:00:04]}  Qa5+ {[%clk 0:01:00]} 74. Ke8 {[%clk 0:00:04]}  Qe5+ {[%clk 0:01:00]} 75. Kd8 {[%clk 0:00:03]}  Qb8+ {[%clk 0:01:00]} 76. Ke7 {[%clk 0:00:00]}  Qxf8+ {[%clk 0:01:00]} 0-1


[Site "https://www.chess.com"]

[Event "Titled Tuesday Blitz July 18 Late 2023"]
[White "Yoo, Christopher Woojin"]
[Black "Vlassov, Nikolai"]
[WhiteFideId "30909694"]
[BlackFideId "4103360"]
[WhiteElo "2982"]
[BlackElo "2573"]
[Result "1-0"]
[Round "4"]
[TimeControl "180+2"]
[Date "2023.07.18"]
[WhiteClock "0:00:03"]
[BlackClock "0:00:00"]
[Board "34"]

1. Na3 {[%clk 0:03:00]}  g6 {[%clk 0:02:51]} 2. d4 {[%clk 0:02:58]}  Bg7 {[%clk 0:02:51]} 3. h4 {[%clk 0:02:56]}  h5 {[%clk 0:02:50]} 4. e4 {[%clk 0:02:56]}  c5 {[%clk 0:02:47]} 5. dxc5 {[%clk 0:02:51]}  Na6 {[%clk 0:02:45]} 6. Nf3 {[%clk 0:02:50]}  Nxc5 {[%clk 0:02:44]} 7. Bc4 {[%clk 0:02:50]}  d6 {[%clk 0:02:35]} 8. Ng5 {[%clk 0:02:50]}  Nh6 {[%clk 0:02:34]} 9. c3 {[%clk 0:02:49]}  O-O {[%clk 0:02:27]} 10. O-O {[%clk 0:02:47]}  Ng4 {[%clk 0:02:20]} 11. f3 {[%clk 0:02:46]}  Ne5 {[%clk 0:02:20]} 12. Be2 {[%clk 0:02:46]}  f6 {[%clk 0:02:14]} 13. f4 {[%clk 0:02:46]}  Ng4 {[%clk 0:02:00]} 14. Bc4+ {[%clk 0:02:43]}  Kh8 {[%clk 0:01:50]} 15. Nf7+ {[%clk 0:02:38]}  Rxf7 {[%clk 0:01:50]} 16. Bxf7 {[%clk 0:02:39]}  Nxe4 {[%clk 0:01:50]} 17. Bxg6 {[%clk 0:02:36]}  f5 {[%clk 0:01:33]} 18. Nc4 {[%clk 0:02:28]}  Be6 {[%clk 0:01:05]} 19. Ne3 {[%clk 0:02:21]}  Qb6 {[%clk 0:01:03]} 20. Qf3 {[%clk 0:02:21]}  Bd5 {[%clk 0:00:29]} 21. Re1 {[%clk 0:02:21]}  Nxc3 {[%clk 0:00:21]} 22. Qf1 {[%clk 0:02:21]}  Ne4 {[%clk 0:00:18]} 23. Bxf5 {[%clk 0:02:19]}  Bd4 {[%clk 0:00:15]} 24. Bxg4 {[%clk 0:02:19]}  hxg4 {[%clk 0:00:15]} 25. f5 {[%clk 0:02:15]}  Be5 {[%clk 0:00:11]} 26. Qd3 {[%clk 0:02:09]}  Bc6 {[%clk 0:00:10]} 27. a4 {[%clk 0:01:44]}  Rf8 {[%clk 0:00:09]} 28. a5 {[%clk 0:01:39]}  Qc5 {[%clk 0:00:10]} 29. Ra4 {[%clk 0:01:38]}  d5 {[%clk 0:00:10]} 30. Rxe4 {[%clk 0:01:08]}  dxe4 {[%clk 0:00:11]} 31. Qc4 {[%clk 0:01:08]}  Qxc4 {[%clk 0:00:09]} 32. Nxc4 {[%clk 0:01:08]}  Bd4+ {[%clk 0:00:09]} 33. Be3 {[%clk 0:01:09]}  Bf6 {[%clk 0:00:07]} 34. g3 {[%clk 0:00:51]}  Bg7 {[%clk 0:00:08]} 35. Rf1 {[%clk 0:00:50]}  Bd5 {[%clk 0:00:08]} 36. b3 {[%clk 0:00:49]}  a6 {[%clk 0:00:06]} 37. Rf4 {[%clk 0:00:48]}  e6 {[%clk 0:00:05]} 38. f6 {[%clk 0:00:31]}  Rxf6 {[%clk 0:00:05]} 39. Rxg4 {[%clk 0:00:29]}  Rf3 {[%clk 0:00:03]} 40. Bb6 {[%clk 0:00:04]}  Rxb3 {[%clk 0:00:03]} 41. Ne3 {[%clk 0:00:05]}  Rb2 {[%clk 0:00:03]} 42. h5 {[%clk 0:00:04]}  Bf6 {[%clk 0:00:00]} 43. Rg6 {[%clk 0:00:03]} 1-0


[Site "https://www.chess.com"]

[Event "Titled Tuesday Blitz July 18 Late 2023"]
[White "Manukyan, Artyom"]
[Black "Maghsoodloo, Parham"]
[WhiteFideId "13305786"]
[BlackFideId "12539929"]
[WhiteElo "2572"]
[BlackElo "2969"]
[Result "0-1"]
[Round "4"]
[TimeControl "180+2"]
[Date "2023.07.18"]
[WhiteClock "0:00:03"]
[BlackClock "0:01:55"]
[Board "35"]

1. e4 {[%clk 0:03:00]}  c5 {[%clk 0:02:58]} 2. Nc3 {[%clk 0:03:00]}  d6 {[%clk 0:02:58]} 3. f4 {[%clk 0:03:00]}  a6 {[%clk 0:02:59]} 4. a4 {[%clk 0:02:59]}  Nc6 {[%clk 0:02:59]} 5. Nf3 {[%clk 0:02:59]}  g6 {[%clk 0:02:59]} 6. Bc4 {[%clk 0:02:59]}  Bg7 {[%clk 0:03:00]} 7. O-O {[%clk 0:03:00]}  e6 {[%clk 0:02:58]} 8. f5 {[%clk 0:03:00]}  Nf6 {[%clk 0:02:56]} 9. fxe6 {[%clk 0:02:52]}  Bxe6 {[%clk 0:02:56]} 10. d3 {[%clk 0:02:44]}  O-O {[%clk 0:02:56]} 11. Bg5 {[%clk 0:02:36]}  h6 {[%clk 0:02:56]} 12. Bh4 {[%clk 0:02:35]}  Qd7 {[%clk 0:02:53]} 13. Qd2 {[%clk 0:02:28]}  Kh7 {[%clk 0:02:40]} 14. Rae1 {[%clk 0:02:09]}  Rae8 {[%clk 0:02:36]} 15. Bd5 {[%clk 0:01:52]}  Bxd5 {[%clk 0:02:22]} 16. exd5 {[%clk 0:01:47]}  Ne7 {[%clk 0:02:16]} 17. Ne5 {[%clk 0:01:08]}  dxe5 {[%clk 0:02:12]} 18. Bxf6 {[%clk 0:01:08]}  Nxd5 {[%clk 0:02:13]} 19. Ne4 {[%clk 0:01:01]}  Qc6 {[%clk 0:02:09]} 20. Bxg7 {[%clk 0:00:50]}  Kxg7 {[%clk 0:02:09]} 21. c4 {[%clk 0:00:51]}  Nf4 {[%clk 0:02:09]} 22. Qc3 {[%clk 0:00:50]}  f6 {[%clk 0:02:08]} 23. g3 {[%clk 0:00:44]}  Nh3+ {[%clk 0:02:08]} 24. Kg2 {[%clk 0:00:41]}  Ng5 {[%clk 0:02:08]} 25. Kg1 {[%clk 0:00:37]}  Rd8 {[%clk 0:01:59]} 26. Nxg5 {[%clk 0:00:21]}  hxg5 {[%clk 0:02:00]} 27. Re3 {[%clk 0:00:21]}  Rd4 {[%clk 0:02:00]} 28. Ref3 {[%clk 0:00:20]}  g4 {[%clk 0:02:00]} 29. Re3 {[%clk 0:00:19]}  Qxa4 {[%clk 0:01:59]} 30. b3 {[%clk 0:00:15]}  Qd7 {[%clk 0:01:59]} 31. Qa5 {[%clk 0:00:11]}  Qd6 {[%clk 0:01:58]} 32. b4 {[%clk 0:00:08]}  cxb4 {[%clk 0:01:58]} 33. c5 {[%clk 0:00:09]}  Qd8 {[%clk 0:01:57]} 34. Qa4 {[%clk 0:00:03]}  Rxd3 {[%clk 0:01:55]} 0-1


[Site "https://www.chess.com"]

[Event "Titled Tuesday Blitz July 18 Late 2023"]
[White "Svane, Rasmus"]
[Black "robertoalejandro10"]
[WhiteFideId "4657101"]
[WhiteElo "2956"]
[BlackElo "2569"]
[Result "1-0"]
[Round "4"]
[TimeControl "180+2"]
[Date "2023.07.18"]
[WhiteClock "0:00:50"]
[BlackClock "0:00:00"]
[Board "36"]

1. Nf3 {[%clk 0:03:00]}  Nf6 {[%clk 0:02:58]} 2. g3 {[%clk 0:03:00]}  g6 {[%clk 0:02:58]} 3. Bg2 {[%clk 0:03:00]}  Bg7 {[%clk 0:02:59]} 4. O-O {[%clk 0:03:01]}  O-O {[%clk 0:02:59]} 5. d4 {[%clk 0:03:01]}  c5 {[%clk 0:02:59]} 6. dxc5 {[%clk 0:03:00]}  Na6 {[%clk 0:02:59]} 7. Be3 {[%clk 0:03:00]}  Qc7 {[%clk 0:02:29]} 8. Nc3 {[%clk 0:02:40]}  Nxc5 {[%clk 0:02:28]} 9. Bd4 {[%clk 0:02:41]}  d6 {[%clk 0:02:25]} 10. Bxf6 {[%clk 0:02:41]}  exf6 {[%clk 0:02:22]} 11. Nd5 {[%clk 0:02:41]}  Qd8 {[%clk 0:02:21]} 12. c3 {[%clk 0:02:39]}  Be6 {[%clk 0:02:19]} 13. Nd4 {[%clk 0:02:37]}  f5 {[%clk 0:02:08]} 14. e3 {[%clk 0:02:30]}  Rb8 {[%clk 0:02:05]} 15. Nf4 {[%clk 0:02:26]}  Qe7 {[%clk 0:01:55]} 16. Qe2 {[%clk 0:02:22]}  Ne4 {[%clk 0:01:44]} 17. Rfd1 {[%clk 0:02:20]}  Rfc8 {[%clk 0:01:43]} 18. Qd3 {[%clk 0:02:10]}  Bc4 {[%clk 0:01:19]} 19. Qc2 {[%clk 0:02:08]}  a5 {[%clk 0:01:05]} 20. a4 {[%clk 0:02:06]}  Nc5 {[%clk 0:00:53]} 21. Bd5 {[%clk 0:02:01]}  Ne4 {[%clk 0:00:45]} 22. Bxc4 {[%clk 0:01:58]}  Rxc4 {[%clk 0:00:46]} 23. Nb5 {[%clk 0:01:55]}  h5 {[%clk 0:00:35]} 24. Qd3 {[%clk 0:01:48]}  Rc6 {[%clk 0:00:32]} 25. h4 {[%clk 0:01:43]}  Be5 {[%clk 0:00:32]} 26. Nd5 {[%clk 0:01:42]}  Qd8 {[%clk 0:00:30]} 27. Kg2 {[%clk 0:01:40]}  Nc5 {[%clk 0:00:25]} 28. Qe2 {[%clk 0:01:36]}  Ne4 {[%clk 0:00:25]} 29. Rac1 {[%clk 0:01:26]}  Nf6 {[%clk 0:00:23]} 30. Nxf6+ {[%clk 0:01:26]}  Qxf6 {[%clk 0:00:24]} 31. Rc2 {[%clk 0:01:21]}  Qe7 {[%clk 0:00:23]} 32. c4 {[%clk 0:01:18]}  Rd8 {[%clk 0:00:22]} 33. Rcd2 {[%clk 0:01:15]}  Qe6 {[%clk 0:00:06]} 34. b3 {[%clk 0:01:15]}  Kg7 {[%clk 0:00:05]} 35. Qf3 {[%clk 0:01:13]}  Bf6 {[%clk 0:00:03]} 36. Rd5 {[%clk 0:01:10]}  Rc5 {[%clk 0:00:02]} 37. Rxc5 {[%clk 0:01:08]}  dxc5 {[%clk 0:00:02]} 38. Rxd8 {[%clk 0:01:09]}  Bxd8 {[%clk 0:00:03]} 39. Qxb7 {[%clk 0:01:10]}  Bf6 {[%clk 0:00:03]} 40. Qd5 {[%clk 0:01:08]}  Qe7 {[%clk 0:00:03]} 41. Nd6 {[%clk 0:00:59]}  Be5 {[%clk 0:00:03]} 42. Nxf7 {[%clk 0:00:57]}  Bf6 {[%clk 0:00:02]} 43. Nd6 {[%clk 0:00:54]}  Qd7 {[%clk 0:00:01]} 44. Nb7 {[%clk 0:00:50]}  Qe7 {[%clk 0:00:00]} 45. Nxc5 {[%clk 0:00:50]} 1-0


[Site "https://www.chess.com"]

[Event "Titled Tuesday Blitz July 18 Late 2023"]
[White "Sjugirov, Sanan"]
[Black "Gascon Del Nogal, Jose Rafael"]
[WhiteFideId "4189302"]
[BlackFideId "3902463"]
[WhiteElo "2936"]
[BlackElo "2559"]
[Result "1-0"]
[Round "4"]
[TimeControl "180+2"]
[Date "2023.07.18"]
[WhiteClock "0:01:52"]
[BlackClock "0:00:32"]
[Board "37"]

1. e4 {[%clk 0:03:00]}  c5 {[%clk 0:02:59]} 2. Nf3 {[%clk 0:03:01]}  d6 {[%clk 0:03:00]} 3. Bb5+ {[%clk 0:03:02]}  Bd7 {[%clk 0:03:00]} 4. c4 {[%clk 0:03:02]}  Nf6 {[%clk 0:02:59]} 5. Nc3 {[%clk 0:03:02]}  g6 {[%clk 0:02:58]} 6. O-O {[%clk 0:03:02]}  Bg7 {[%clk 0:02:59]} 7. Bxd7+ {[%clk 0:03:02]}  Nbxd7 {[%clk 0:02:58]} 8. d3 {[%clk 0:03:03]}  O-O {[%clk 0:02:59]} 9. h3 {[%clk 0:03:03]}  Ne8 {[%clk 0:02:58]} 10. Be3 {[%clk 0:03:03]}  Ne5 {[%clk 0:02:54]} 11. Ne1 {[%clk 0:03:03]}  Nc6 {[%clk 0:02:53]} 12. f4 {[%clk 0:03:03]}  f5 {[%clk 0:02:50]} 13. Nf3 {[%clk 0:03:03]}  e6 {[%clk 0:02:49]} 14. d4 {[%clk 0:02:58]}  fxe4 {[%clk 0:02:20]} 15. Nxe4 {[%clk 0:02:57]}  cxd4 {[%clk 0:02:21]} 16. Nxd4 {[%clk 0:02:58]}  Bxd4 {[%clk 0:02:17]} 17. Bxd4 {[%clk 0:02:59]}  d5 {[%clk 0:02:16]} 18. Ng5 {[%clk 0:02:56]}  dxc4 {[%clk 0:02:05]} 19. Bc3 {[%clk 0:02:50]}  Qxd1 {[%clk 0:02:02]} 20. Raxd1 {[%clk 0:02:51]}  h6 {[%clk 0:01:32]} 21. Nxe6 {[%clk 0:02:51]}  Rf7 {[%clk 0:01:33]} 22. Rfe1 {[%clk 0:02:52]}  Re7 {[%clk 0:01:29]} 23. Nc5 {[%clk 0:02:43]}  Rxe1+ {[%clk 0:01:28]} 24. Rxe1 {[%clk 0:02:44]}  b5 {[%clk 0:01:27]} 25. Re6 {[%clk 0:02:43]}  Rc8 {[%clk 0:01:22]} 26. Rxg6+ {[%clk 0:02:35]}  Kh7 {[%clk 0:01:20]} 27. Re6 {[%clk 0:02:33]}  b4 {[%clk 0:01:20]} 28. Be1 {[%clk 0:02:27]}  Nd4 {[%clk 0:01:17]} 29. Re7+ {[%clk 0:02:27]}  Kg6 {[%clk 0:01:17]} 30. Ne6 {[%clk 0:02:14]}  Nf5 {[%clk 0:00:47]} 31. Rxa7 {[%clk 0:01:59]}  c3 {[%clk 0:00:46]} 32. bxc3 {[%clk 0:02:00]}  bxc3 {[%clk 0:00:47]} 33. g4 {[%clk 0:02:00]}  c2 {[%clk 0:00:41]} 34. gxf5+ {[%clk 0:01:59]}  Kxf5 {[%clk 0:00:42]} 35. Nd4+ {[%clk 0:01:59]}  Kxf4 {[%clk 0:00:43]} 36. Bd2+ {[%clk 0:01:54]}  Ke4 {[%clk 0:00:39]} 37. Nb3 {[%clk 0:01:54]}  Nd6 {[%clk 0:00:32]} 38. Re7+ {[%clk 0:01:52]}  Kd3 {[%clk 0:00:31]} 39. Re3+ {[%clk 0:01:52]}  Kc4 {[%clk 0:00:31]} 40. Rc3+ {[%clk 0:01:52]}  Kb4 {[%clk 0:00:32]} 41. Rxc8+ {[%clk 0:01:52]} 1-0


[Site "https://www.chess.com"]

[Event "Titled Tuesday Blitz July 18 Late 2023"]
[White "Antipov, Mikhail Al."]
[Black "Ezat, Mohamed"]
[WhiteFideId "4107012"]
[BlackFideId "10600906"]
[WhiteElo "2913"]
[BlackElo "2553"]
[Result "1-0"]
[Round "4"]
[TimeControl "180+2"]
[Date "2023.07.18"]
[WhiteClock "0:01:48"]
[BlackClock "0:01:29"]
[Board "38"]

1. e4 {[%clk 0:02:15]}  e5 {[%clk 0:02:58]} 2. Nf3 {[%clk 0:02:15]}  Nc6 {[%clk 0:02:58]} 3. Nc3 {[%clk 0:02:16]}  Nf6 {[%clk 0:02:56]} 4. Bb5 {[%clk 0:02:16]}  Bb4 {[%clk 0:02:51]} 5. Nd5 {[%clk 0:02:14]}  Bc5 {[%clk 0:02:39]} 6. c3 {[%clk 0:02:13]}  O-O {[%clk 0:02:38]} 7. O-O {[%clk 0:02:08]}  d6 {[%clk 0:02:36]} 8. d4 {[%clk 0:02:06]}  Bb6 {[%clk 0:02:34]} 9. Bg5 {[%clk 0:02:05]}  Bg4 {[%clk 0:02:33]} 10. Qc1 {[%clk 0:01:51]}  exd4 {[%clk 0:02:08]} 11. Bxf6 {[%clk 0:01:49]}  gxf6 {[%clk 0:01:29]} 12. Qh6 {[%clk 0:01:48]} 1-0


[Site "https://www.chess.com"]

[Event "Titled Tuesday Blitz July 18 Late 2023"]
[White "Risteski, Emil"]
[Black "Rasulov, Vugar"]
[WhiteFideId "15005267"]
[BlackFideId "13402390"]
[WhiteElo "2546"]
[BlackElo "2853"]
[Result "0-1"]
[Round "4"]
[TimeControl "180+2"]
[Date "2023.07.18"]
[WhiteClock "0:00:00"]
[BlackClock "0:01:38"]
[Board "40"]

1. c4 {[%clk 0:02:39]}  c6 {[%clk 0:02:59]} 2. Nc3 {[%clk 0:02:39]}  d5 {[%clk 0:02:59]} 3. e3 {[%clk 0:02:39]}  Nf6 {[%clk 0:02:59]} 4. Nf3 {[%clk 0:02:40]}  Bg4 {[%clk 0:02:59]} 5. d4 {[%clk 0:02:37]}  e6 {[%clk 0:02:57]} 6. h3 {[%clk 0:02:37]}  Bh5 {[%clk 0:02:57]} 7. Be2 {[%clk 0:02:38]}  Nbd7 {[%clk 0:02:57]} 8. O-O {[%clk 0:02:38]}  Bd6 {[%clk 0:02:56]} 9. b3 {[%clk 0:02:37]}  O-O {[%clk 0:02:56]} 10. Bb2 {[%clk 0:02:38]}  a6 {[%clk 0:02:52]} 11. Rc1 {[%clk 0:02:37]}  b5 {[%clk 0:02:52]} 12. cxd5 {[%clk 0:02:23]}  cxd5 {[%clk 0:02:51]} 13. a4 {[%clk 0:02:23]}  b4 {[%clk 0:02:49]} 14. Na2 {[%clk 0:02:21]}  a5 {[%clk 0:02:46]} 15. Ne5 {[%clk 0:02:02]}  Bxe2 {[%clk 0:02:46]} 16. Qxe2 {[%clk 0:02:02]}  Bxe5 {[%clk 0:02:44]} 17. dxe5 {[%clk 0:02:02]}  Ne4 {[%clk 0:02:45]} 18. Bd4 {[%clk 0:01:59]}  Qg5 {[%clk 0:02:33]} 19. Rc7 {[%clk 0:01:22]}  Rfd8 {[%clk 0:02:32]} 20. Rfc1 {[%clk 0:01:18]}  Nf8 {[%clk 0:02:25]} 21. f3 {[%clk 0:01:16]}  Ng3 {[%clk 0:02:23]} 22. Qf2 {[%clk 0:01:02]}  Nf5 {[%clk 0:02:22]} 23. Kh2 {[%clk 0:00:56]}  h5 {[%clk 0:02:21]} 24. f4 {[%clk 0:00:56]}  Qg6 {[%clk 0:02:21]} 25. R1c2 {[%clk 0:00:41]}  h4 {[%clk 0:02:20]} 26. Nc1 {[%clk 0:00:41]}  Ng3 {[%clk 0:02:19]} 27. Ne2 {[%clk 0:00:36]}  Nf5 {[%clk 0:02:12]} 28. Ng1 {[%clk 0:00:34]}  Qg3+ {[%clk 0:01:49]} 29. Qxg3 {[%clk 0:00:32]}  hxg3+ {[%clk 0:01:50]} 30. Kh1 {[%clk 0:00:32]}  Ng6 {[%clk 0:01:51]} 31. Ne2 {[%clk 0:00:32]}  Rf8 {[%clk 0:01:46]} 32. Bc5 {[%clk 0:00:27]}  Rfc8 {[%clk 0:01:44]} 33. Bb6 {[%clk 0:00:27]}  Rxc7 {[%clk 0:01:41]} 34. Rxc7 {[%clk 0:00:28]}  f6 {[%clk 0:01:39]} 35. exf6 {[%clk 0:00:27]}  gxf6 {[%clk 0:01:40]} 36. Nd4 {[%clk 0:00:00]}  Nxd4 {[%clk 0:01:38]} 0-1


[Site "https://www.chess.com"]

[Event "Titled Tuesday Blitz July 18 Late 2023"]
[White "Rangel, Daniel"]
[Black "Zelbel, Patrick"]
[WhiteFideId "2124475"]
[BlackFideId "24624322"]
[WhiteElo "2534"]
[BlackElo "2773"]
[Result "0-1"]
[Round "4"]
[TimeControl "180+2"]
[Date "2023.07.18"]
[WhiteClock "0:00:18"]
[BlackClock "0:01:31"]
[Board "44"]

1. c4 {[%clk 0:03:00]}  c5 {[%clk 0:02:57]} 2. g3 {[%clk 0:03:01]}  g6 {[%clk 0:02:56]} 3. Bg2 {[%clk 0:03:01]}  Bg7 {[%clk 0:02:56]} 4. Nc3 {[%clk 0:03:01]}  Nc6 {[%clk 0:02:51]} 5. e3 {[%clk 0:02:59]}  h5 {[%clk 0:02:43]} 6. h4 {[%clk 0:02:52]}  d6 {[%clk 0:02:44]} 7. Nge2 {[%clk 0:02:52]}  Bd7 {[%clk 0:02:42]} 8. b3 {[%clk 0:02:49]}  Nh6 {[%clk 0:02:42]} 9. Bb2 {[%clk 0:02:48]}  a6 {[%clk 0:02:37]} 10. d4 {[%clk 0:02:40]}  cxd4 {[%clk 0:02:33]} 11. Nxd4 {[%clk 0:02:40]}  Nxd4 {[%clk 0:02:33]} 12. exd4 {[%clk 0:02:40]}  Nf5 {[%clk 0:02:33]} 13. Bxb7 {[%clk 0:02:35]}  Rb8 {[%clk 0:02:09]} 14. Bg2 {[%clk 0:02:28]}  Bxd4 {[%clk 0:02:09]} 15. O-O {[%clk 0:02:13]}  e5 {[%clk 0:02:04]} 16. Re1 {[%clk 0:01:32]}  Kf8 {[%clk 0:01:57]} 17. Qd3 {[%clk 0:01:26]}  g5 {[%clk 0:01:37]} 18. hxg5 {[%clk 0:00:57]}  h4 {[%clk 0:01:38]} 19. g4 {[%clk 0:00:34]}  h3 {[%clk 0:01:38]} 20. gxf5 {[%clk 0:00:29]}  Qxg5 {[%clk 0:01:34]} 21. Qf3 {[%clk 0:00:21]}  hxg2 {[%clk 0:01:33]} 22. Ne4 {[%clk 0:00:18]}  Rh1# {[%clk 0:01:31]} 0-1


[Site "https://www.chess.com"]